fUSD/lending_fUSD_20250419
["ID","MTS","AMOUNT","RATE_DAILY","PERIOD"]
[358402533,1745068251858,-561.0,0.00064369,120]
[358402534,1745068251869,-500.0,0.00064369,120]
[358402535,1745068251881,-1028.44,0.00064379,120]
[358402536,1745068251892,-507.85,0.00064379,120]
[358402537,1745068251902,-1086.4,0.00064379,120]
[358402538,1745068251911,-500.0,0.00064379,120]
[358402539,1745068251921,-500.0,0.00064379,120]
[358402540,1745068251931,-500.0,0.00064379,120]
[358402541,1745068251940,-947.63,0.00064379,120]
[358402542,1745068251950,-500.0,0.00064379,30]
[358402543,1745068251959,-549.66,0.00064379,120]
[358402544,1745068251968,-989.54,0.00064379,120]
[358402545,1745068251978,-500.0,0.00064379,120]
[358402546,1745068251987,-500.0,0.00064379,120]
[358402547,1745068251996,-500.0,0.00064379,120]
[358402548,1745068252005,-500.86,0.00064379,120]
[358402549,1745068252014,-500.0,0.00064379,120]
[358402550,1745068252023,-500.0,0.00064379,120]
[358402551,1745068252033,-500.0,0.00064379,120]
[358402552,1745068252043,-500.0,0.00064379,120]
[358402553,1745068252053,-1197.35,0.00064656,8]
[358402554,1745068252062,-580.84,0.00064657,120]
[358402555,1745068252074,-587.96,0.00064657,120]
[358402556,1745068252083,-500.0,0.00064657,120]
[358402557,1745068252092,-963.54,0.00064657,120]
[358402558,1745068252101,-788.3,0.00064657,120]
[358402559,1745068252111,-200.0,0.000647,120]
[358402560,1745068252120,-1000.0,0.00064794,120]
[358402561,1745068252129,-500.0,0.00064917,120]
[358402562,1745068252138,-500.0,0.00064917,120]
[358402563,1745068252147,-500.0,0.00064917,120]
[358402564,1745068252156,-1562.22,0.00064917,120]
[358402565,1745068252166,-500.0,0.00064917,120]
[358402566,1745068252175,-1013.07,0.00064917,120]
[358402567,1745068252183,-1172.86,0.00064917,120]
[358402568,1745068252193,-998.58,0.00064917,120]
[358402569,1745068252202,-561.0,0.00064917,120]
[358402570,1745068252211,-500.0,0.00064917,120]
[358402571,1745068252220,-1028.44,0.00064927,120]
[358402572,1745068252229,-507.85,0.00064927,120]
[358402573,1745068252239,-1086.4,0.00064927,120]
[358402574,1745068252248,-500.0,0.00064927,120]
[358402575,1745068252257,-500.0,0.00064927,120]
[358402576,1745068252265,-500.0,0.00064927,120]
[358402577,1745068252275,-947.63,0.00064927,120]
[358402578,1745068252283,-500.0,0.00064927,30]
[358402579,1745068252293,-549.66,0.00064927,120]
[358402580,1745068252302,-989.54,0.00064927,120]
[358402581,1745068252311,-500.0,0.00064927,120]
[358402582,1745068252320,-500.0,0.00064927,120]
[358402583,1745068252329,-500.0,0.00064927,120]
[358402584,1745068252339,-500.86,0.00064927,120]
[358402585,1745068252348,-500.0,0.00064927,120]
[358402586,1745068252357,-500.0,0.00064927,120]
[358402587,1745068252366,-500.0,0.00064927,120]
[358402588,1745068252376,-500.0,0.00064927,120]
[358402589,1745068252385,-500.0,0.00065198,120]
[358402590,1745068252395,-1197.35,0.00065204,8]
[358402591,1745068252404,-580.84,0.00065205,120]
[358402592,1745068252414,-587.96,0.00065205,120]
[358402593,1745068252423,-500.0,0.00065205,120]
[358402594,1745068252432,-963.54,0.00065205,120]
[358402595,1745068252443,-788.3,0.00065205,120]
[358402596,1745068252453,-1295.36,0.00065289,2]
[358402597,1745068252461,-3588.36,0.000653,60]
[358402598,1745068252471,-508.04214725,0.00065465,120]
[358402599,1745068252480,-500.0,0.00065465,120]
[358402600,1745068252489,-500.0,0.00065465,120]
[358402601,1745068252500,-1562.22,0.00065465,120]
[358402602,1745068252510,-500.0,0.00065465,120]
[358402603,1745068252520,-1013.07,0.00065465,120]
[358402604,1745068252529,-1172.86,0.00065465,120]
[358402605,1745068252539,-998.58,0.00065465,120]
[358402606,1745068252548,-561.0,0.00065465,120]
[358402607,1745068252557,-500.0,0.00065465,120]
[358402608,1745068252566,-1028.44,0.00065475,120]
[358402609,1745068252575,-507.85,0.00065475,120]
[358402610,1745068252585,-1086.4,0.00065475,120]
[358402611,1745068252594,-540.51327286,0.00065475,120]
[358402612,1745068252604,-500.0,0.00065475,120]
[358402613,1745068252614,-500.0,0.00065475,120]
[358402614,1745068252623,-947.63,0.00065475,120]
[358402615,1745068252634,-500.0,0.00065475,30]
[358402616,1745068252644,-549.66,0.00065475,120]
[358402617,1745068252653,-989.54,0.00065475,120]
[358402618,1745068252662,-500.0,0.00065475,120]
[358402619,1745068252673,-500.0,0.00065475,120]
[358402620,1745068252683,-500.0,0.00065475,120]
[358402621,1745068252692,-500.86,0.00065475,120]
[358402622,1745068252702,-500.0,0.00065475,120]
[358402623,1745068252712,-500.0,0.00065475,120]
[358402624,1745068252721,-621.62910003,0.00065475,120]
[358402625,1745068252732,-500.0,0.00065475,120]
[358402626,1745068252742,-2700.21292463,0.00065624,32]
[358402627,1745068252751,-200.0,0.000657,120]
[358402628,1745068252760,-166.66,0.00065719,2]
[358402629,1745068252769,-236.22,0.00065742,2]
[358402630,1745068252780,-1197.35,0.00065752,8]
[358402631,1745068252789,-580.84,0.00065753,120]
[358402632,1745068252801,-587.96,0.00065753,120]
[358402633,1745068252810,-500.0,0.00065753,120]
[358402634,1745068252819,-963.54,0.00065753,120]
[358402635,1745068252828,-788.3,0.00065753,120]
[358402636,1745068252837,-600.0,0.00065753,120]
[358402637,1745068252846,-600.0,0.00065753,120]
[358402638,1745068252855,-600.0,0.00065753,120]
[358402639,1745068252864,-600.0,0.00065753,120]
[358402640,1745068252873,-600.0,0.00065753,120]
[358402641,1745068252882,-600.0,0.00065753,120]
[358402642,1745068252891,-6437.14535075,0.00065878,15]
[358402643,1745068252900,-500.0,0.00066013,120]
[358402644,1745068252910,-1562.22,0.00066013,120]
[358402645,1745068252920,-500.0,0.00066013,120]
[358402646,1745068252930,-1013.07,0.00066013,120]
[358402647,1745068252939,-1172.86,0.00066013,120]
[358402648,1745068252948,-998.58,0.00066013,120]
[358402649,1745068252957,-561.0,0.00066013,120]
[358402650,1745068252966,-500.0,0.00066013,120]
[358402651,1745068252975,-1028.44,0.00066023,120]
[358402652,1745068252985,-507.85,0.00066023,120]
[358402653,1745068252994,-1086.4,0.00066023,120]
[358402654,1745068253003,-500.0,0.00066023,120]
[358402655,1745068253012,-500.0,0.00066023,120]
[358402656,1745068253022,-947.63,0.00066023,120]
[358402657,1745068253031,-549.66,0.00066023,120]
[358402658,1745068253040,-989.54,0.00066023,120]
[358402659,1745068253050,-500.0,0.00066023,120]
[358402660,1745068253059,-500.0,0.00066023,120]
[358402661,1745068253069,-500.0,0.00066023,120]
[358402662,1745068253078,-500.86,0.00066023,120]
[358402663,1745068253089,-500.0,0.00066023,120]
[358402664,1745068253099,-500.0,0.00066023,120]
[358402665,1745068253109,-500.0,0.00066023,120]
[358402666,1745068253118,-1197.35,0.000663,8]
[358402667,1745068253127,-580.84,0.00066301,120]
[358402668,1745068253136,-587.96,0.00066301,120]
[358402669,1745068253146,-508.57,0.00066301,120]
[358402670,1745068253157,-963.54,0.00066301,120]
[358402671,1745068253167,-788.3,0.00066301,120]
[358402672,1745068253178,-500.0,0.00066561,120]
[358402673,1745068253188,-1562.22,0.00066561,120]
[358402674,1745068253198,-500.0,0.00066561,120]
[358402675,1745068253208,-1013.07,0.00066561,120]
[358402676,1745068253219,-1172.86,0.00066561,120]
[358402677,1745068253228,-998.58,0.00066561,120]
[358402678,1745068253238,-561.0,0.00066561,120]
[358402679,1745068253247,-500.0,0.00066561,120]
[358402680,1745068253358,-1028.44,0.0006657,120]
[358402681,1745068253381,-507.85,0.0006657,120]
[358402682,1745068253390,-1086.4,0.0006657,120]
[358402683,1745068253400,-594.8071142,0.0006657,120]
[358402684,1745068253410,-500.0,0.0006657,120]
[358402685,1745068253420,-947.63,0.0006657,120]
[358402686,1745068253430,-549.66,0.0006657,120]
[358402687,1745068253440,-989.54,0.0006657,120]
[358402688,1745068253450,-500.0,0.0006657,120]
[358402689,1745068253460,-500.0,0.0006657,120]
[358402690,1745068253469,-500.0,0.0006657,120]
[358402691,1745068253478,-500.86,0.0006657,120]
[358402692,1745068253487,-500.0,0.0006657,120]
[358402693,1745068253496,-500.0,0.0006657,120]
[358402694,1745068253511,-500.0,0.0006657,120]
[358402695,1745068253520,-500.0,0.00066696,120]
[358402696,1745068253530,-200.0,0.000667,120]
[358402697,1745068253539,-3588.36,0.000668,60]
[358402698,1745068253551,-1197.35,0.00066848,8]
[358402699,1745068253560,-580.84,0.00066849,120]
[358402700,1745068253570,-587.96,0.00066849,120]
[358402701,1745068253579,-963.54,0.00066849,120]
[358402702,1745068253588,-788.3,0.00066849,120]
[358402703,1745068253597,-500.0,0.00067109,120]
[358402704,1745068253607,-1562.22,0.00067109,120]
[358402705,1745068253616,-500.0,0.00067109,120]
[358402706,1745068253626,-1013.07,0.00067109,120]
[358402707,1745068253636,-1172.86,0.00067109,120]
[358402708,1745068253645,-998.58,0.00067109,120]
[358402709,1745068253655,-561.0,0.00067109,120]
[358402710,1745068253665,-500.0,0.00067109,120]
[358402711,1745068253675,-1028.44,0.00067118,120]
[358402712,1745068253684,-507.85,0.00067118,120]
[358402713,1745068253694,-1086.4,0.00067118,120]
[358402714,1745068253703,-500.0,0.00067118,120]
[358402715,1745068253713,-947.63,0.00067118,120]
[358402716,1745068253722,-549.66,0.00067118,120]
[358402717,1745068253733,-989.54,0.00067118,120]
[358402718,1745068253742,-500.0,0.00067118,120]
[358402719,1745068253751,-500.0,0.00067118,120]
[358402720,1745068253761,-500.0,0.00067118,120]
[358402721,1745068253770,-500.86,0.00067118,120]
[358402722,1745068253780,-500.0,0.00067118,120]
[358402723,1745068253789,-500.0,0.00067118,120]
[358402724,1745068253799,-500.0,0.00067118,120]
[358402725,1745068253808,-1197.35,0.00067396,8]
[358402726,1745068253817,-580.97828302,0.00067397,120]
[358402727,1745068253826,-588.05,0.00067397,120]
[358402728,1745068253837,-963.59758891,0.00067397,120]
[358402729,1745068253846,-788.35694541,0.00067397,120]
[358402730,1745068253855,-500.0,0.00067656,120]
[358402731,1745068253865,-1562.22,0.00067656,120]
[358402732,1745068253876,-1013.07,0.00067656,120]
[358402733,1745068253889,-1172.86,0.00067656,120]
[358402734,1745068253899,-998.58,0.00067656,120]
[358402735,1745068253908,-561.0,0.00067656,120]
[358402736,1745068253917,-500.0,0.00067656,120]
[358402737,1745068253927,-1028.44,0.00067666,120]
[358402738,1745068253936,-507.85,0.00067666,120]
[358402739,1745068253945,-1086.4,0.00067666,120]
[358402740,1745068253954,-478.4072,0.00067666,120]
[358402741,1745068253965,-947.63,0.00067666,120]
[358402742,1745068253975,-549.66,0.00067666,120]
[358402743,1745068253985,-989.54,0.00067666,120]
[358402744,1745068253996,-500.0,0.00067666,120]
[358402745,1745068254006,-500.0,0.00067666,120]
[358402746,1745068254015,-500.86,0.00067666,120]
[358402747,1745068254025,-500.0,0.00067666,120]
[358402748,1745068254034,-500.0,0.00067666,120]
[358402749,1745068254043,-338.099999,0.000677,120]
[358402750,1745068254052,-2700.21292463,0.00067831,33]
[358402751,1745068254062,-1197.47673864,0.00067944,8]
[358402752,1745068254071,-236.22,0.00068006,2]
[358402753,1745068254081,-500.0,0.00068204,120]
[358402754,1745068254094,-1562.22,0.00068204,120]
[358402755,1745068254105,-1013.07,0.00068204,120]
[358402756,1745068254114,-1172.86,0.00068204,120]
[358402757,1745068254124,-998.58,0.00068204,120]
[358402758,1745068254134,-561.0,0.00068204,120]
[358402759,1745068254143,-528.36458957,0.00068204,120]
[358402760,1745068254153,-1028.44,0.00068214,120]
[358402761,1745068254163,-507.85,0.00068214,120]
[358402762,1745068254173,-1086.4,0.00068214,120]
[358402763,1745068254183,-947.63,0.00068214,120]
[358402764,1745068254192,-549.66,0.00068214,120]
[358402765,1745068254202,-989.54,0.00068214,120]
[358402766,1745068254211,-500.0,0.00068214,120]
[358402767,1745068254221,-631.6221684,0.00068214,120]
[358402768,1745068254231,-500.86,0.00068214,120]
[358402769,1745068254240,-500.0,0.00068214,120]
[358402770,1745068254250,-500.0,0.00068214,120]
[358402771,1745068254260,-174.186775,0.000684,3]
[358402772,1745068254270,-167.156689,0.000684,3]
[358402773,1745068254280,-500.0,0.00068482,120]
[358402774,1745068254289,-150.0,0.00068493,2]
[358402775,1745068254299,-500.0,0.00068493,120]
[358402776,1745068254308,-500.0,0.00068493,120]
[358402777,1745068254318,-500.0,0.00068493,120]
[358402778,1745068254328,-500.0,0.00068493,120]
[358402779,1745068254340,-500.0,0.00068493,120]
[358402780,1745068254349,-500.0,0.00068493,120]
[358402781,1745068254359,-500.0,0.00068493,120]
[358402782,1745068254369,-500.0,0.00068493,120]
[358402783,1745068254379,-500.0,0.00068493,120]
[358402784,1745068254389,-500.0,0.00068493,120]
[358402785,1745068254399,-500.0,0.00068493,120]
[358402786,1745068254408,-500.0,0.00068493,120]
[358402787,1745068254418,-500.0,0.00068493,120]
[358402788,1745068254428,-500.0,0.00068493,120]
[358402789,1745068254438,-500.0,0.00068493,120]
[358402790,1745068254447,-500.0,0.00068493,120]
[358402791,1745068254457,-500.0,0.00068493,120]
[358402792,1745068254467,-500.0,0.00068493,120]
[358402793,1745068254478,-500.0,0.00068493,120]
[358402794,1745068254488,-500.0,0.00068493,120]
[358402795,1745068254498,-500.0,0.00068493,120]
[358402796,1745068254512,-500.0,0.00068493,120]
[358402797,1745068254522,-500.0,0.00068493,120]
[358402798,1745068254531,-500.0,0.00068493,120]
[358402799,1745068254541,-500.0,0.00068493,120]
[358402800,1745068254551,-500.0,0.00068493,120]
[358402801,1745068254561,-500.0,0.00068493,120]
[358402802,1745068254571,-500.0,0.00068493,120]
[358402803,1745068254580,-500.0,0.00068493,120]
[358402804,1745068254592,-500.0,0.00068493,120]
[358402805,1745068254601,-500.0,0.00068493,120]
[358402806,1745068254611,-500.0,0.00068493,120]
[358402807,1745068254620,-500.0,0.00068493,120]
[358402808,1745068254629,-500.0,0.00068493,120]
[358402809,1745068254639,-500.0,0.00068493,120]
[358402810,1745068254649,-500.0,0.00068493,120]
[358402811,1745068254658,-500.0,0.00068493,120]
[358402812,1745068254667,-500.0,0.00068493,120]
[358402813,1745068254677,-500.0,0.00068493,120]
[358402814,1745068254686,-500.0,0.00068493,120]
[358402815,1745068254696,-500.0,0.00068493,120]
[358402816,1745068254705,-500.0,0.00068493,120]
[358402817,1745068254715,-500.0,0.00068493,120]
[358402818,1745068254725,-500.0,0.00068493,120]
[358402819,1745068254734,-500.0,0.00068493,120]
[358402820,1745068254743,-500.0,0.00068493,120]
[358402821,1745068254752,-500.0,0.00068493,120]
[358402822,1745068254762,-500.0,0.00068493,120]
[358402823,1745068254772,-500.0,0.00068493,120]
[358402824,1745068254782,-487.92419937,0.00068493,120]
[358402825,1745068254791,-3588.36,0.000685,60]
[358402826,1745068254801,-150.0,0.00068548,2]
[358402827,1745068254811,-200.0,0.00068603,2]
[358402828,1745068254820,-500.0,0.00068752,120]
[358402829,1745068254830,-1562.22,0.00068752,120]
[358402830,1745068254840,-1013.07,0.00068752,120]
[358402831,1745068254850,-1172.86,0.00068752,120]
[358402832,1745068254860,-998.58,0.00068752,120]
[358402833,1745068254869,-561.0,0.00068752,120]
[358402834,1745068254879,-1028.44,0.00068762,120]
[358402835,1745068254890,-507.85,0.00068762,120]
[358402836,1745068254899,-1086.4,0.00068762,120]
[358402837,1745068254909,-947.63,0.00068762,120]
[358402838,1745068254919,-549.66,0.00068762,120]
[358402839,1745068254928,-989.54,0.00068762,120]
[358402840,1745068254938,-500.0,0.00068762,120]
[358402841,1745068254948,-500.86,0.00068762,120]
[358402842,1745068254959,-500.0,0.00068762,120]
[358402843,1745068254968,-500.0,0.00068762,120]
[358402844,1745068254978,-500.0,0.00069225,120]
[358402845,1745068254987,-533.07200002,0.000693,120]
[358402846,1745068254997,-1562.22,0.000693,120]
[358402847,1745068255007,-1013.07,0.000693,120]
[358402848,1745068255016,-1172.86,0.000693,120]
[358402849,1745068255026,-998.58,0.000693,120]
[358402850,1745068255036,-561.0,0.000693,120]
[358402851,1745068255045,-500.0,0.00069305,120]
[358402852,1745068255054,-1028.44,0.0006931,120]
[358402853,1745068255064,-507.85,0.0006931,120]
[358402854,1745068255073,-1086.4,0.0006931,120]
[358402855,1745068255084,-947.63,0.0006931,120]
[358402856,1745068255094,-549.66,0.0006931,120]
[358402857,1745068255103,-989.54,0.0006931,120]
[358402858,1745068255113,-609.06851235,0.0006931,120]
[358402859,1745068255122,-500.86,0.0006931,120]
[358402860,1745068255132,-500.0,0.0006931,120]
[358402861,1745068255142,-500.0,0.0006931,120]
[358402862,1745068255152,-500.0,0.00069589,120]
[358402863,1745068255161,-1562.22,0.00069848,120]
[358402864,1745068255171,-1013.07,0.00069848,120]
[358402865,1745068255181,-1172.86,0.00069848,120]
[358402866,1745068255191,-998.58,0.00069848,120]
[358402867,1745068255202,-561.0,0.00069848,120]
[358402868,1745068255211,-1028.44,0.00069858,120]
[358402869,1745068255221,-507.85,0.00069858,120]
[358402870,1745068255231,-1086.4,0.00069858,120]
[358402871,1745068255241,-947.63,0.00069858,120]
[358402872,1745068255250,-549.66,0.00069858,120]
[358402873,1745068255261,-989.54,0.00069858,120]
[358402874,1745068255271,-500.86,0.00069858,120]
[358402875,1745068255282,-500.0,0.00069858,120]
[358402876,1745068255291,-500.0,0.00069858,120]
[358402877,1745068255301,-400.0,0.0006997,90]
[358402878,1745068255311,-500.0,0.00069998,120]
[358402879,1745068255320,-300000.0,0.0007,30]
[358402880,1745068255330,-2700.21292463,0.00070038,35]
[358402881,1745068255340,-236.22,0.0007027,2]
[358402882,1745068255349,-231.16,0.00070383,120]
[358402883,1745068255359,-1562.22,0.00070396,120]
[358402884,1745068255369,-1013.07,0.00070396,120]
[358402885,1745068255379,-1172.86,0.00070396,120]
[358402886,1745068255388,-998.58,0.00070396,120]
[358402887,1745068255398,-561.0,0.00070396,120]
[358402888,1745068255409,-1028.44,0.00070406,120]
[358402889,1745068255417,-507.85,0.00070406,120]
[358402890,1745068255427,-1086.4,0.00070406,120]
[358402891,1745068255440,-947.63,0.00070406,120]
[358402892,1745068255450,-549.66,0.00070406,120]
[358402893,1745068255460,-989.54,0.00070406,120]
[358402894,1745068255470,-500.86,0.00070406,120]
[358402895,1745068255479,-500.0,0.00070406,120]
[358402896,1745068255490,-562.61366907,0.00070406,120]
[358402897,1745068255501,-6437.14535075,0.00070552,15]
[358402898,1745068255512,-1000.0,0.00070685,120]
[358402899,1745068255523,-1562.22,0.00070944,120]
[358402900,1745068255534,-1013.07,0.00070944,120]
[358402901,1745068255546,-1172.86,0.00070944,120]
[358402902,1745068255556,-998.58,0.00070944,120]
[358402903,1745068255566,-561.0,0.00070944,120]
[358402904,1745068255575,-1028.44,0.00070954,120]
[358402905,1745068255585,-507.85,0.00070954,120]
[358402906,1745068255595,-1086.4,0.00070954,120]
[358402907,1745068255604,-947.63,0.00070954,120]
[358402908,1745068255614,-549.66,0.00070954,120]
[358402909,1745068255624,-989.54,0.00070954,120]
[358402910,1745068255633,-500.86,0.00070954,120]
[358402911,1745068255643,-595.20418424,0.00070954,120]
[358402912,1745068255654,-600.0,0.00071233,120]
[358402913,1745068255664,-1562.31758035,0.00071492,120]
[358402914,1745068255675,-1013.28132333,0.00071492,120]
[358402915,1745068255684,-1172.95494708,0.00071492,120]
[358402916,1745068255694,-998.75,0.00071492,120]
[358402917,1745068255704,-561.17,0.00071492,120]
[358402918,1745068255713,-1028.59,0.00071502,120]
[358402919,1745068255723,-508.00063371,0.00071502,120]
[358402920,1745068255732,-1086.49,0.00071502,120]
[358402921,1745068255743,-947.66562037,0.00071502,120]
[358402922,1745068255753,-549.71,0.00071502,120]
[358402923,1745068255763,-989.6356385,0.00071502,120]
[358402924,1745068255772,-500.91294312,0.00071502,120]
[358402925,1745068255782,-1000.0,0.00072,120]
[358402926,1745068255792,-2000.0,0.00072,120]
[358402927,1745068255802,-2700.21292463,0.00072245,36]
[358402928,1745068255811,-236.22,0.00072534,2]
[358402929,1745068255821,-407.69626393,0.00073924,120]
[358402930,1745068255831,-2700.21292463,0.00074452,38]
[358402931,1745068255841,-718.25,0.000745,72]
[358402932,1745068255850,-718.25,0.000745,72]
[358402933,1745068255860,-718.25,0.000745,72]
[358402934,1745068255869,-718.25,0.000745,72]
[358402935,1745068255878,-718.25,0.000745,72]
[358402936,1745068255887,-718.25,0.000745,72]
[358402937,1745068255897,-718.25,0.000745,72]
[358402938,1745068255908,-718.25,0.000745,72]
[358402939,1745068255917,-718.25,0.000745,72]
[358402940,1745068256036,-718.25,0.000745,72]
[358402941,1745068256046,-718.25,0.000745,72]
[358402942,1745068256056,-718.25,0.000745,72]
[358402943,1745068256065,-1000.0,0.000747,120]
[358402944,1745068256075,-2000.0,0.000747,120]
[358402945,1745068256085,-236.22,0.00074797,2]
[358402946,1745068256096,-6437.14535075,0.00075226,15]
[358402947,1745068256105,-1148.84,0.00076171,30]
[358402948,1745068256115,-167.156689,0.0007625,120]
[358402949,1745068256124,-2700.21292463,0.00076659,39]
[358402950,1745068256134,-600.0,0.00076712,120]
[358402951,1745068256143,-236.22,0.00077061,2]
[358402952,1745068256154,-12500.0,0.00078568,20]
[358402953,1745068256164,-12500.0,0.00078577,20]
[358402954,1745068256175,-12500.0,0.00078586,20]
[358402955,1745068256184,-12500.0,0.00078595,20]
[358402956,1745068256193,-12500.0,0.00078604,20]
[358402957,1745068256202,-12500.0,0.00078612,20]
[358402958,1745068256211,-12500.0,0.00078621,20]
[358402959,1745068256220,-12500.0,0.0007863,20]
[358402960,1745068256230,-12500.0,0.00078639,20]
[358402961,1745068256239,-12500.0,0.00078648,20]
[358402962,1745068256248,-12500.0,0.00078656,20]
[358402963,1745068256258,-12500.0,0.00078665,20]
[358402964,1745068256267,-12500.0,0.00078674,20]
[358402965,1745068256276,-12500.0,0.00078683,20]
[358402966,1745068256285,-12500.0,0.00078692,20]
[358402967,1745068256295,-12500.0,0.000787,20]
[358402968,1745068256304,-12500.0,0.00078709,20]
[358402969,1745068256314,-12500.0,0.00078718,20]
[358402970,1745068256323,-12500.0,0.00078727,20]
[358402971,1745068256332,-12500.0,0.00078736,20]
[358402972,1745068256343,-12500.0,0.00078744,20]
[358402973,1745068256352,-12500.0,0.00078753,20]
[358402974,1745068256361,-12500.0,0.00078762,20]
[358402975,1745068256371,-12500.0,0.00078771,20]
[358402976,1745068256380,-12500.0,0.0007878,20]
[358402977,1745068256391,-500.0,0.00078788,120]
[358402978,1745068256402,-12500.0,0.00078788,20]
[358402979,1745068256412,-12500.0,0.00078797,20]
[358402980,1745068256422,-2700.21292463,0.00078866,41]
[358402981,1745068256431,-1000.0,0.000789,28]
[358402982,1745068256441,-1014.90733465,0.00079,120]
[358402983,1745068256451,-500.0,0.00079244,120]
[358402984,1745068256461,-581.90535399,0.00079302,120]
[358402985,1745068256471,-236.22,0.00079325,2]
[358402986,1745068256481,-1300.0,0.000794,28]
[358402987,1745068256490,-1600.0,0.000795,29]
[358402988,1745068256505,-300.0,0.000796,29]
[358402989,1745068256515,-300.0,0.000797,29]
[358402990,1745068256525,-300.0,0.000798,29]
[358402991,1745068256534,-400.0,0.0007987,120]
[358402992,1745068256543,-155.87198622,0.00079899,120]
[358402993,1745068256552,-155.87198621,0.000799,120]
[358402994,1745068256562,-248.48150976,0.000799,2]
[358402995,1745068256572,-300.0,0.000799,29]
[358402996,1745068256581,-6437.14535075,0.000799,15]
[358402997,1745068256591,-680.4952195,0.000799,2]
[358402998,1745068256600,-500.0,0.00079989,120]
[358402999,1745068256609,-431.42458194,0.0007999,7]
[358403000,1745068256619,-431.42458194,0.0007999,7]
[358403001,1745068256628,-549.20389494,0.00079999,90]
[358403002,1745068256638,-666.0,0.00079999,120]
[358403003,1745068256648,-500.0,0.00079999,90]
[358403004,1745068256657,-666.0,0.00079999,120]
[358403005,1745068256667,-500.0,0.00079999,90]
[358403006,1745068256676,-666.0,0.00079999,120]
[358403007,1745068256686,-500.0,0.00079999,90]
[358403008,1745068256695,-500.0,0.00079999,120]
[358403009,1745068256704,-500.0,0.00079999,120]
[358403010,1745068256714,-500.0,0.00079999,120]
[358403011,1745068256723,-500.0,0.00079999,120]
[358403012,1745068256732,-500.0,0.00079999,120]
[358403013,1745068256742,-500.0,0.00079999,120]
[358403014,1745068256752,-500.0,0.00079999,120]
[358403015,1745068256762,-500.0,0.00079999,120]
[358403016,1745068256772,-500.0,0.00079999,120]
[358403017,1745068256781,-500.0,0.00079999,120]
[358403018,1745068256793,-331.99157771,0.00079999,120]
[358403019,1745068256803,-1000000.0,0.0008,120]
[358403020,1745068256812,-1000000.0,0.0008,120]
[358403021,1745068256822,-1000000.0,0.0008,120]
[358403022,1745068256832,-1000000.0,0.0008,120]
[358403023,1745068256842,-1000000.0,0.0008,120]
[358403024,1745068256851,-1000000.0,0.0008,120]
[358403025,1745068256860,-1000000.0,0.0008,120]
[358403026,1745068256870,-1000000.0,0.0008,120]
[358403027,1745068256879,-1000000.0,0.0008,120]
[358403028,1745068256889,-1000000.0,0.0008,120]
[358403029,1745068256899,-1000000.0,0.0008,120]
[358403030,1745068256908,-1000000.0,0.0008,120]
[358403031,1745068256918,-490000.0,0.0008,120]
[358403032,1745068256927,-1000000.0,0.0008,120]